bitfinex/quotes_SOLUSD_20240616
["timestamp","ask_amount","ask_price","bid_price","bid_amount"]
[1718560542726,15.0343,147.77,147.73,5.34]
[1718560542929,15.0343,147.77,147.75,5.34]
[1718560545064,11.807,147.81,147.75,5.34]
[1718560545233,35.3719,147.8,147.75,5.34]
[1718560547232,15.3719,147.8,147.72,0.8444931]
[1718560547434,15.3719,147.8,147.76,5.34]
[1718560548247,15.3719,147.8,147.73,0.51]
[1718560548447,15.3719,147.8,147.77,5.34]
[1718560549050,15.3719,147.8,147.78,5.34]
[1718560550234,15.3719,147.8,147.77,5.34]
[1718560551366,15.3719,147.83,147.78,5.34]
[1718560556076,15.3719,147.83,147.81,5.34]
[1718560556243,29.55718207,147.89,147.82,5.34]
[1718560556244,15.3719,147.87,147.82,5.34]
[1718560557272,15.3719,147.87,147.83,5.34]
[1718560557461,15.3719,147.87,147.78,0.34]
[1718560557666,15.3719,147.87,147.83,5.34]
[1718560558778,15.3719,147.87,147.73,5.86254474]
[1718560558779,27.8631,147.85,147.79,5.34]
[1718560558977,2.5027,147.84,147.79,5.34]
[1718560559156,15.0163,147.84,147.78,5.34]
[1718560559359,12.8483,147.84,147.78,5.34]
[1718560559558,46.9304,147.83,147.72,14.8287931]
[1718560559776,2.503,147.82,147.77,5.34]
[1718560559955,12.8491,147.82,147.72,20.87864499]
[1718560560158,5.34,147.81,147.75,5.34]
[1718560563505,5.34,147.81,147.72,14.26394499]
[1718560563681,34.4161,147.83,147.73,25.34]
[1718560563682,5.34,147.79,147.73,25.34]
[1718560564587,5.34,147.8,147.74,5.34]
[1718560566709,5.34,147.81,147.75,5.34]
[1718560567095,7.8432,147.81,147.75,5.34]
[1718560567295,5.34,147.8,147.74,5.34]
[1718560567489,5.34,147.8,147.73,20.0]
[1718560567711,5.34,147.8,147.74,5.34]
[1718560568011,5.34,147.8,147.72,0.8444931]
[1718560568208,25.0323,147.81,147.73,5.34]
[1718560568513,5.34,147.79,147.73,5.34]
[1718560569226,5.34,147.8,147.74,5.34]
[1718560569914,40.913,147.82,147.74,5.34]
[1718560569915,15.5419,147.82,147.74,5.34]
[1718560570124,15.3719,147.82,147.77,5.34]
[1718560571412,20.7119,147.82,147.77,5.34]
[1718560573912,23.215,147.82,147.77,5.34]
[1718560574116,20.7119,147.82,147.76,5.34]
[1718560575015,23.2149,147.82,147.76,5.34]
[1718560575230,20.7119,147.82,147.76,5.34]
[1718560575516,23.215,147.82,147.76,5.34]
[1718560576918,15.3719,147.82,147.76,5.34]
[1718560577098,20.7119,147.82,147.76,5.34]
[1718560577421,15.3719,147.82,147.77,5.34]
[1718560578704,15.3719,147.82,147.73,0.17]
[1718560578907,23.2149,147.82,147.76,5.34]
[1718560580736,20.7119,147.82,147.76,5.34]
[1718560583610,23.2149,147.82,147.76,5.34]
[1718560583809,20.7119,147.82,147.76,5.34]
[1718560584228,15.3719,147.82,147.76,5.34]
[1718560584721,17.8749,147.82,147.76,5.34]
[1718560587140,15.3719,147.82,147.77,5.34]
[1718560588612,15.3719,147.82,147.73,8.0496]
[1718560588814,15.3719,147.82,147.8,5.34]
[1718560589018,2.5022,147.87,147.81,5.34]
[1718560589019,16.6305,147.86,147.81,5.34]
[1718560589755,19.1328,147.86,147.81,5.34]
[1718560590421,24.4728,147.86,147.8,5.34]
[1718560590825,29.4775,147.86,147.8,5.34]
[1718560591027,24.4728,147.86,147.8,5.34]
[1718560591841,21.9705,147.86,147.8,5.34]
[1718560592346,16.6305,147.86,147.8,5.34]
[1718560592545,21.9705,147.86,147.8,5.34]
[1718560596459,21.9705,147.86,147.81,5.34]
[1718560596460,16.6305,147.86,147.81,5.34]
[1718560602940,16.6305,147.86,147.78,7.7096]
[1718560602941,16.6305,147.89,147.83,5.34]
[1718560603236,16.6305,147.89,147.78,14.0649]
[1718560603237,16.6305,147.89,147.84,5.34]
[1718560603629,16.6305,147.89,147.85,5.34]
[1718560607126,19.0287,147.93,147.78,20.7306319]
[1718560607328,21.8675,147.93,147.87,5.34]
[1718560607531,21.8675,147.93,147.79,49.06096162]
[1718560607532,16.5275,147.93,147.85,0.17]
[1718560607750,16.5275,147.93,147.87,5.34]
[1718560607751,19.0287,147.93,147.87,5.34]
[1718560607947,24.3687,147.93,147.87,5.34]
[1718560608257,29.3711,147.93,147.87,5.34]
[1718560608568,5.34,147.92,147.86,5.34]
[1718560608740,36.8748,147.93,147.86,5.34]
[1718560608934,29.3712,147.93,147.86,5.34]
[1718560609147,24.3688,147.93,147.86,5.34]
[1718560609351,24.3688,147.93,147.87,5.34]
[1718560610041,21.8675,147.93,147.87,5.34]
[1718560610247,24.3687,147.93,147.87,5.34]
[1718560610467,21.8675,147.93,147.87,5.34]
[1718560611262,16.5275,147.93,147.87,5.34]
[1718560611456,21.8675,147.93,147.87,5.34]
[1718560612937,34.3738,147.93,147.83,7.3696]
[1718560613145,5.34,147.92,147.86,5.34]
[1718560613562,5.34,147.91,147.85,5.34]
[1718560616044,5.34,147.91,147.79,15.60056162]
[1718560616045,5.34,147.9,147.84,5.34]
[1718560616256,5.34,147.9,147.79,8.93482972]
[1718560616257,5.34,147.89,147.79,8.93482972]
[1718560616465,5.34,147.89,147.83,5.34]
[1718560618066,15.0093,147.91,147.83,5.34]
[1718560618386,5.34,147.89,147.83,5.34]
[1718560618667,7.5046,147.91,147.83,5.34]
[1718560618868,5.34,147.89,147.83,5.34]
[1718560620979,7.505,147.9,147.83,5.34]
[1718560621188,5.34,147.92,147.8,0.17]
[1718560621354,5.34,147.92,147.86,5.34]
[1718560621555,16.5275,147.93,147.86,5.34]
[1718560621776,25.34,147.92,147.86,5.34]
[1718560622570,20.0,147.92,147.86,5.34]
[1718560622776,25.34,147.92,147.86,5.34]
[1718560623277,25.34,147.92,147.87,5.34]
[1718560623464,19.0287,147.93,147.87,5.34]
[1718560623465,16.5275,147.93,147.87,5.34]
[1718560623661,21.8675,147.93,147.87,5.34]
[1718560624050,24.3687,147.93,147.87,5.34]
[1718560624373,5.34,147.92,147.86,5.34]
[1718560626585,5.34,147.91,147.83,6.1782]
[1718560626753,5.34,147.91,147.85,5.34]
[1718560627081,5.34,147.89,147.79,15.39642972]
[1718560627285,5.34,147.89,147.83,5.34]
[1718560627753,5.34,147.89,147.79,15.39642972]
[1718560627957,5.34,147.89,147.83,5.34]
[1718560628174,5.34,147.89,147.8,20.0]
[1718560628175,5.34,147.9,147.84,5.34]
[1718560631760,7.8417,147.9,147.84,5.34]
[1718560632066,7.8417,147.9,147.81,0.17]
[1718560632264,5.34,147.89,147.83,5.34]
[1718560632465,5.34,147.9,147.84,5.34]
[1718560634959,7.8417,147.9,147.84,5.34]
[1718560635167,5.34,147.9,147.84,5.34]
[1718560635556,12.845,147.9,147.84,5.34]
[1718560635778,5.34,147.89,147.83,5.34]
[1718560635987,5.34,147.89,147.8,20.0]
[1718560635988,20.4362,147.88,147.8,20.0]
[1718560636278,5.34,147.86,147.79,1.56522972]
[1718560636576,5.34,147.86,147.8,5.34]
[1718560639785,5.34,147.86,147.77,21.36]
[1718560639957,5.34,147.86,147.78,20.0]
[1718560641562,5.34,147.85,147.79,5.34]
[1718560642462,5.34,147.85,147.78,20.0]
[1718560642665,5.34,147.84,147.76,0.51]
[1718560642865,5.34,147.84,147.78,5.34]
[1718560647276,5.34,147.85,147.79,5.34]
[1718560647482,20.0,147.84,147.79,5.34]
[1718560649905,20.0,147.84,147.76,0.51]
[1718560650194,20.0,147.84,147.79,5.34]
[1718560650362,15.0142,147.86,147.79,5.34]
[1718560650569,2.5024,147.86,147.79,5.34]
[1718560650891,5.34,147.85,147.79,5.34]
[1718560651189,5.34,147.85,147.77,0.17]
[1718560651190,32.8471,147.86,147.8,5.34]
[1718560651687,12.8471,147.86,147.8,5.34]
[1718560652278,22.5203,147.87,147.8,5.34]
[1718560652586,7.8423,147.86,147.8,5.34]
[1718560653094,5.34,147.86,147.8,5.34]
[1718560655294,5.30988,147.86,147.8,5.34]
[1718560657217,22.6025,147.88,147.8,5.34]
[1718560657418,15.0962,147.88,147.83,5.34]
[1718560657999,27.9423,147.88,147.8,0.17]
[1718560658194,35.4483,147.88,147.82,5.34]
[1718560658422,5.34,147.87,147.81,5.34]
[1718560663929,20.4362,147.88,147.82,5.34]
[1718560664130,15.0962,147.88,147.8,0.17]
[1718560664311,15.0962,147.88,147.84,5.34]
[1718560665298,15.0962,147.88,147.8,0.17]
[1718560665502,16.6287,147.92,147.86,5.34]
[1718560665698,21.9687,147.92,147.86,5.34]
[1718560666321,16.6287,147.92,147.87,5.34]
[1718560672703,16.6287,147.92,147.85,0.17]
[1718560672935,16.6287,147.92,147.87,5.34]
[1718560673912,16.6287,147.92,147.85,0.17]
[1718560674118,16.6287,147.92,147.88,5.34]
[1718560676027,5.34,147.94,147.85,0.17]
[1718560676028,21.9687,147.94,147.85,0.17]
[1718560676443,24.4697,147.94,147.85,0.17]
[1718560676618,5.34,147.93,147.85,0.17]
[1718560679221,16.6287,147.94,147.85,0.17]
[1718560680614,16.6287,147.94,147.85,9.00302514]
[1718560680812,16.6287,147.94,147.86,20.51]
[1718560685115,5.34,147.91,147.85,8.83302514]
[1718560685313,5.34,147.89,147.83,5.34]
[1718560686209,31.17361184,147.94,147.85,5.34]
[1718560686552,5.34,147.91,147.86,5.34]
[1718560686914,5.34,147.91,147.85,5.34]
[1718560689937,22.5011,147.93,147.85,5.34]
[1718560690241,5.34,147.92,147.85,5.34]
[1718560692717,5.34,147.92,147.86,5.34]
[1718560694062,7.8413,147.92,147.86,5.34]
[1718560694223,5.34,147.91,147.85,5.34]
[1718560696524,7.8415,147.91,147.85,5.34]
[1718560696857,7.8415,147.91,147.81,14.60593707]
[1718560696858,5.34,147.9,147.84,5.34]
[1718560697148,5.34,147.9,147.81,14.60593707]
[1718560697149,5.34,147.91,147.85,5.34]
[1718560698854,5.34,147.91,147.81,14.60593707]
[1718560699055,5.34,147.9,147.84,5.34]
[1718560699429,20.5927,147.9,147.84,5.34]
[1718560699639,27.7613,147.9,147.82,20.0]
[1718560699953,5.34,147.88,147.82,25.34]
[1718560702934,20.5927,147.86,147.77,8.83302514]
[1718560703148,5.34,147.85,147.79,25.34]
[1718560703582,5.34,147.84,147.79,20.0]
[1718560704852,5.34,147.85,147.79,25.34]
[1718560705260,20.5927,147.86,147.8,5.34]
[1718560707743,15.2527,147.86,147.79,20.0]
[1718560708051,15.2527,147.86,147.82,5.34]
[1718560708679,15.2527,147.86,147.81,5.34]
[1718560710363,15.2527,147.86,147.78,20.17]
[1718560713778,20.5927,147.86,147.78,20.17]
[1718560713980,20.5927,147.86,147.8,5.34]
[1718560714657,5.34,147.85,147.77,20.51]
[1718560714876,5.34,147.85,147.79,5.34]
[1718560717782,15.2527,147.86,147.79,5.34]
[1718560717987,15.2527,147.86,147.77,25.85]
[1718560718155,15.2527,147.86,147.81,5.34]
[1718560722263,15.2527,147.86,147.78,0.17]
[1718560722582,15.2527,147.86,147.82,5.34]
[1718560723368,15.2527,147.86,147.81,5.34]
[1718560733204,15.2527,147.86,147.78,9.51302514]
[1718560733205,20.2575,147.86,147.78,8.83302514]
[1718560733505,10.3452,147.85,147.79,20.0]
[1718560733691,7.8426,147.85,147.79,25.34]
[1718560734475,5.34,147.85,147.79,25.34]
[1718560735994,7.8425,147.85,147.79,20.0]
[1718560736204,7.8425,147.85,147.75,21.24691422]
[1718560736205,5.34,147.84,147.78,5.34]
[1718560736503,5.34,147.84,147.79,20.0]
[1718560738294,5.34,147.85,147.79,25.34]
[1718560740407,15.2527,147.86,147.79,25.34]
[1718560740616,20.5927,147.86,147.8,5.34]
[1718560742492,15.2527,147.86,147.79,20.0]
[1718560742699,5.34,147.85,147.77,0.17]
[1718560742892,17.7551,147.86,147.77,0.17]
[1718560742893,17.7551,147.86,147.79,5.34]
[1718560743119,5.34,147.85,147.79,5.34]
[1718560744518,5.34,147.85,147.77,0.51]
[1718560744690,5.34,147.85,147.79,5.34]
[1718560744896,5.34,147.85,147.77,0.51]
[1718560745098,5.34,147.85,147.79,5.34]
[1718560745497,5.34,147.85,147.74,8.83302514]
[1718560745498,5.34,147.83,147.74,8.83302514]
[1718560745696,20.0,147.84,147.76,5.34]
[1718560745697,5.34,147.82,147.76,5.34]
[1718560746725,5.34,147.83,147.77,5.34]
[1718560747294,5.34,147.84,147.78,5.34]
[1718560751013,24.0103,147.85,147.78,5.34]
[1718560751232,25.34,147.84,147.78,5.34]
[1718560756134,20.0,147.84,147.78,5.34]
[1718560756332,25.34,147.84,147.78,5.34]
[1718560757140,5.34,147.84,147.78,5.34]
[1718560757312,21.5078,147.85,147.81,5.34]
[1718560757313,15.1227,147.85,147.81,5.34]
[1718560758724,15.1227,147.85,147.79,0.17]
[1718560758918,15.1227,147.85,147.8,5.34]
[1718560760847,8.887,147.89,147.81,5.34]
[1718560761057,5.34,147.88,147.8,0.17]
[1718560761349,26.8478,147.89,147.83,5.34]
[1718560761953,21.5078,147.89,147.83,5.34]
[1718560762114,26.8478,147.89,147.83,5.34]
[1718560763837,41.859,147.89,147.8,9.17302514]
[1718560764045,34.3534,147.89,147.83,5.34]
[1718560764214,5.34,147.88,147.82,5.34]
[1718560765850,21.5078,147.89,147.82,5.34]
[1718560766143,5.34,147.88,147.82,5.34]
[1718560768253,26.8478,147.89,147.83,5.34]
[1718560772166,21.5078,147.89,147.85,5.34]
[1718560772844,21.5078,147.89,147.86,5.34]
[1718560773370,15.1227,147.89,147.86,5.34]
[1718560775656,24.396,147.93,147.86,5.34]
[1718560775863,20.0,147.92,147.87,5.34]
[1718560777047,29.736,147.93,147.87,5.34]
[1718560777735,24.396,147.93,147.87,5.34]
[1718560777938,21.8948,147.93,147.85,0.17]
[1718560778157,21.8948,147.93,147.88,5.34]
[1718560779549,21.8948,147.93,147.89,5.34]
[1718560781166,15.7448,147.93,147.89,5.34]
[1718560781468,8.6507,147.96,147.89,5.34]
[1718560781762,6.15,147.96,147.91,5.34]
[1718560782361,6.15,147.96,147.88,0.17]
[1718560782362,11.49,147.96,147.9,5.34]
[1718560782747,5.34,147.95,147.89,5.34]
[1718560791275,11.49,147.96,147.9,5.34]
[1718560793678,13.9906,147.96,147.9,5.34]
[1718560793881,5.34,147.95,147.89,5.34]
[1718560794878,5.34,147.95,147.9,5.34]
[1718560795084,11.49,147.96,147.9,5.34]
[1718560797285,13.9906,147.96,147.9,5.34]
[1718560797583,11.49,147.96,147.9,5.34]
[1718560798765,5.34,147.95,147.89,5.34]
[1718560800255,6.15,147.96,147.85,8.83302514]
[1718560800256,16.2759,147.94,147.85,8.83302514]
[1718560800467,16.2759,147.94,147.86,25.34]
[1718560800781,5.34,147.92,147.86,25.34]
[1718560801462,5.34,147.92,147.86,5.34]
[1718560802079,16.2759,147.94,147.87,5.34]
[1718560802381,21.6159,147.94,147.88,5.34]
[1718560802568,16.2759,147.94,147.85,8.83302514]
[1718560802758,16.2759,147.94,147.9,5.34]
[1718560803866,16.2759,147.94,147.86,0.17]
[1718560804062,16.2759,147.94,147.9,5.34]
[1718560804263,16.2759,147.94,147.86,29.51302514]
[1718560804469,16.2759,147.94,147.89,5.34]
[1718560805374,16.2759,147.94,147.88,5.34]
[1718560805580,16.2759,147.94,147.86,29.51302514]
[1718560805581,18.7769,147.94,147.87,5.34]
[1718560805873,21.2779,147.94,147.86,20.0]
[1718560806070,5.34,147.92,147.86,25.34]
[1718560806272,12.8437,147.93,147.86,25.34]
[1718560806564,11.7724,147.92,147.86,25.34]
[1718560806759,11.7724,147.92,147.86,20.0]
[1718560806962,5.34,147.89,147.83,14.17302514]
[1718560807188,5.34,147.89,147.81,8.00062717]
[1718560807392,5.34,147.89,147.83,5.34]
[1718560808082,5.34,147.89,147.79,8.83302514]
[1718560808290,5.34,147.89,147.83,5.34]
[1718560808488,5.34,147.88,147.82,5.34]
[1718560808669,5.34,147.88,147.79,8.83302514]
[1718560809186,5.34,147.89,147.83,5.34]
[1718560810081,5.34,147.89,147.8,0.68]
[1718560810387,5.34,147.88,147.82,5.34]
[1718560810564,5.34,147.88,147.8,20.34]
[1718560810565,5.34,147.88,147.79,8.83302514]
[1718560810766,5.34,147.88,147.82,5.34]
[1718560811395,22.3962,147.87,147.82,5.34]
[1718560811591,22.3962,147.87,147.81,5.34]
[1718560811795,22.3962,147.87,147.84,5.34]
[1718560813584,22.3962,147.87,147.83,5.34]
[1718560815592,22.3962,147.87,147.8,0.17]
[1718560815898,22.3962,147.87,147.82,5.34]
[1718560816075,22.3962,147.87,147.79,0.68]
[1718560816280,27.7362,147.87,147.79,20.0]
[1718560816592,5.34,147.85,147.79,25.34]
[1718560817169,44.9162,147.87,147.74,14.18132717]
[1718560817170,7.5071,147.86,147.74,14.18132717]
[1718560817370,5.34,147.84,147.78,5.34]
[1718560817990,5.34,147.84,147.74,14.18132717]
[1718560818194,5.34,147.84,147.78,5.34]
[1718560819894,24.8984,147.87,147.8,5.34]
[1718560820205,25.34,147.86,147.8,5.34]
[1718560820377,5.34,147.85,147.79,5.34]
[1718560821283,22.3962,147.87,147.82,5.34]
[1718560822375,22.3962,147.87,147.81,5.34]
[1718560823677,22.3962,147.87,147.78,9.34302514]
[1718560823877,5.34,147.84,147.78,5.34]
[1718560824086,5.34,147.83,147.77,5.34]
[1718560824305,5.34,147.84,147.78,25.34]
[1718560824483,5.34,147.84,147.78,5.34]
[1718560824995,5.34,147.84,147.74,20.00606306]
[1718560824996,7.8427,147.84,147.74,8.00062717]
[1718560825201,15.9638,147.82,147.77,5.34]
[1718560827314,15.9638,147.82,147.79,5.34]
[1718560827986,15.9638,147.82,147.78,5.34]
[1718560829604,15.9638,147.82,147.79,5.34]
[1718560829822,15.5436,147.86,147.81,5.34]
[1718560830140,15.5436,147.86,147.78,0.17]
[1718560830422,15.5436,147.86,147.84,5.34]
[1718560831600,15.5436,147.86,147.83,5.34]
[1718560834625,2.5014,147.92,147.84,5.34]
[1718560834626,20.8836,147.9,147.84,5.34]
[1718560835003,15.5436,147.9,147.86,5.34]
[1718560835217,15.5436,147.9,147.88,5.34]
[1718560835407,2.5008,147.95,147.89,5.34]
[1718560835604,12.8425,147.95,147.86,0.17]
[1718560835816,5.34,147.94,147.86,0.34]
[1718560836134,5.34,147.94,147.87,0.34]
[1718560836715,5.34,147.93,147.85,20.0]
[1718560836917,5.34,147.91,147.85,25.34]
[1718560837117,11.4806,147.91,147.85,25.34]
[1718560838831,11.4806,147.91,147.85,20.0]
[1718560839048,5.34,147.9,147.84,5.34]
[1718560839217,5.34,147.9,147.85,20.0]
[1718560839416,11.4806,147.91,147.85,5.34]
[1718560840131,13.9821,147.91,147.85,5.34]
[1718560840515,13.9821,147.91,147.82,20.0]
[1718560840516,7.8417,147.9,147.82,20.0]
[1718560840716,16.147,147.91,147.82,5.34]
[1718560840717,5.34,147.88,147.82,5.34]
[1718560841125,6.1406,147.91,147.83,0.17]
[1718560841325,6.1406,147.91,147.87,5.34]
[1718560843437,6.1406,147.91,147.88,5.34]
[1718560847736,15.5436,147.92,147.88,5.34]
[1718560848316,15.5436,147.92,147.89,5.34]
[1718560850857,15.5436,147.92,147.84,5.34]
[1718560850858,6.1426,147.95,147.88,0.17]
[1718560851058,6.1426,147.95,147.9,5.34]
[1718560852366,6.1426,147.95,147.91,5.34]
[1718560854942,6.1426,147.95,147.9,5.34]
[1718560856872,20.6889,147.96,147.88,0.68]
[1718560856873,15.3489,147.96,147.88,0.68]
[1718560857178,20.6889,147.96,147.9,5.34]
[1718560857392,20.6889,147.96,147.88,0.68]
[1718560857678,20.6889,147.96,147.9,5.34]
[1718560858977,20.6889,147.96,147.88,0.68]
[1718560859357,20.6889,147.96,147.9,5.34]
[1718560861088,20.6889,147.96,147.88,0.68]
[1718560861289,25.6902,147.96,147.88,0.68]
[1718560861462,5.34,147.95,147.88,0.68]
[1718560861668,5.34,147.95,147.88,0.17]
[1718560861669,6.1426,147.94,147.88,0.17]
[1718560861966,6.1426,147.94,147.89,5.34]
[1718560862171,6.1426,147.94,147.86,0.17]
[1718560862368,11.4826,147.94,147.88,5.34]
[1718560862571,11.4826,147.94,147.89,20.0]
[1718560863381,6.1426,147.94,147.89,25.34]
[1718560871098,6.1426,147.94,147.9,5.34]
[1718560872473,6.1426,147.94,147.89,25.34]
[1718560875615,6.1426,147.94,147.84,36.73022717]
[1718560875616,21.1367,147.93,147.84,8.00062717]
[1718560875773,5.34,147.9,147.84,13.34062717]
[1718560875968,5.34,147.9,147.84,5.34]
[1718560876403,5.34,147.91,147.85,5.34]
[1718560879600,121.36,147.98,147.83,8.83302514]
[1718560879601,5.34,147.9,147.83,8.83302514]
[1718560879795,5.34,147.9,147.84,25.51]
[1718560879796,22.1017,147.89,147.84,25.51]
[1718560881007,22.1017,147.89,147.84,25.34]
[1718560881186,22.1017,147.89,147.83,8.83302514]
[1718560881187,27.4417,147.89,147.83,8.83302514]
[1718560881392,5.34,147.87,147.81,5.34]
[1718560881933,5.34,147.87,147.82,5.34]
[1718560882217,5.34,147.88,147.82,5.34]
[1718560890916,22.1017,147.89,147.85,5.34]
[1718560894506,22.1017,147.89,147.86,5.34]
[1718560894728,6.5234,147.93,147.86,5.34]
[1718560894933,22.0946,147.93,147.89,5.34]
[1718560896426,22.0946,147.93,147.88,5.34]
[1718560900342,22.0946,147.93,147.89,0.51]
[1718560900525,22.0946,147.93,147.89,5.34]
[1718560904833,15.5712,147.93,147.89,5.34]
[1718560908048,15.5712,147.93,147.88,0.17]
[1718560908049,15.5712,147.93,147.9,5.34]
[1718560910130,27.8473,147.97,147.91,5.51]
[1718560910851,27.8473,147.97,147.91,0.17]
[1718560911057,22.5073,147.97,147.91,5.34]
[1718560911258,22.5073,147.97,147.92,5.34]
[1718560911846,22.5073,147.97,147.93,5.34]
[1718560918788,22.5073,147.97,147.94,5.34]
[1718560919568,22.5073,147.97,147.92,0.34]
[1718560919764,22.5073,147.97,147.94,5.34]
[1718560923209,22.5073,147.97,147.92,0.34]
[1718560923363,22.5073,147.97,147.93,5.68]
[1718560925490,22.5073,147.97,147.93,0.34]
[1718560925692,22.5073,147.97,147.93,5.68]
[1718560925876,22.5073,147.97,147.89,5.34]
[1718560926192,5.34,147.94,147.88,5.34]
[1718560926881,5.34,147.95,147.89,5.34]
[1718560927876,5.34,147.95,147.9,5.34]
[1718560929276,47.5125,147.97,147.9,5.34]
[1718560929277,25.0078,147.97,147.9,5.34]
[1718560929493,27.8473,147.97,147.91,5.34]
[1718560929999,30.3478,147.97,147.91,5.34]
[1718560930300,22.5073,147.97,147.91,5.34]
[1718560930471,22.5073,147.97,147.92,5.34]
[1718560930972,22.5073,147.97,147.93,25.34]
[1718560932372,22.5073,147.97,147.95,5.34]
[1718560933677,22.5073,147.97,147.94,5.34]
[1718560933878,22.5073,147.97,147.93,25.34]
[1718560934181,22.5073,147.97,147.92,0.17]
[1718560934182,5.34,147.96,147.91,5.34]
[1718560934371,5.34,147.96,147.92,20.0]
[1718560934573,27.8473,147.97,147.92,20.0]
[1718560935992,22.5073,147.97,147.92,25.34]
[1718560936302,27.8473,147.97,147.92,20.0]
[1718560936502,27.8473,147.97,147.91,5.34]
[1718560938095,22.5073,147.97,147.91,5.34]
[1718560939181,27.8473,147.97,147.91,5.34]
[1718560939382,5.34,147.96,147.88,0.17]
[1718560939585,5.34,147.96,147.9,5.34]
[1718560941101,22.5073,147.97,147.9,5.34]
[1718560941297,5.34,147.96,147.9,5.34]
[1718560941629,27.8473,147.97,147.91,5.34]
[1718560942430,22.5073,147.97,147.91,5.34]
[1718560942632,22.5073,147.97,147.92,5.34]
[1718560943439,27.8473,147.97,147.91,5.34]
[1718560944599,22.5073,147.97,147.88,20.0]
[1718560944911,5.34,147.94,147.88,25.34]
[1718560951051,5.34,147.94,147.89,5.34]
[1718560953222,5.34,147.94,147.88,20.0]
[1718560953422,15.3436,147.96,147.89,5.51]
[1718560953738,15.3436,147.96,147.92,5.34]
[1718560954123,15.3436,147.96,147.93,5.34]
[1718560956261,5.34,148.0,147.94,5.34]
[1718560963261,5.34,148.0,147.93,5.34]
[1718560963470,5.34,147.99,147.93,5.34]
[1718560965372,5.34,147.99,147.92,0.17]
[1718560965577,7.502,147.96,147.92,0.17]
[1718560965739,5.34,147.98,147.92,5.34]
[1718560967150,15.3531,147.99,147.9,20.0]
[1718560967458,5.34,147.95,147.89,25.34]
[1718560968574,11.7064,147.96,147.9,5.34]
[1718560969365,11.7064,147.96,147.89,20.0]
[1718560969684,11.7064,147.96,147.9,5.34]
[1718560970951,6.3664,147.96,147.91,5.34]
[1718560971162,5.34,147.97,147.91,5.34]
[1718560971383,5.34,147.97,147.92,5.34]
[1718560972065,5.34,147.97,147.9,0.68]